bitfinex/quotes_SOLUSD_20260115
["timestamp","ask_amount","ask_price","bid_price","bid_amount"]
[1768488532686,6.64241327,143.92,143.86,24.32920894]
[1768488532864,0.63383297,143.91,143.86,6.95120255]
[1768488533066,0.63383297,143.91,143.87,6.64241327]
[1768488533267,0.63383297,143.91,143.86,13.59361582]
[1768488533682,0.63383297,143.93,143.86,24.32920894]
[1768488533991,0.63383297,143.93,143.87,0.50424662]
[1768488534186,0.1,143.94,143.89,6.64241327]
[1768488534392,0.63383297,143.93,143.86,24.32920894]
[1768488534688,7.27624624,143.93,143.86,24.83602541]
[1768488534991,0.63383297,143.91,143.86,6.95120255]
[1768488535179,0.1,143.94,143.87,0.50681647]
[1768488535367,6.74241327,143.94,143.87,0.50681647]
[1768488535875,0.73383297,143.94,143.88,6.64241327]
[1768488536093,0.73383297,143.94,143.9,6.64241327]
[1768488536568,0.1,143.94,143.9,0.51186795]
[1768488536767,7.08810332,143.97,143.92,6.64241327]
[1768488536768,0.63383297,143.97,143.92,6.64241327]
[1768488536990,7.27624624,143.97,143.92,6.64241327]
[1768488537168,0.63383297,143.99,143.93,6.64241327]
[1768488537366,0.63383297,143.99,143.94,6.64241327]
[1768488537587,0.63383297,144.01,143.96,6.64241327]
[1768488537767,7.27624624,144.01,143.94,0.51435026]
[1768488537961,30.23517245,144.05,143.93,12.68]
[1768488537962,6.64241327,143.98,143.93,12.68]
[1768488538167,0.63383297,144.01,143.93,13.19435026]
[1768488538373,0.63383297,144.0,143.95,6.94685654]
[1768488538569,6.9441755,144.01,143.93,26.27010022]
[1768488538570,0.63383297,143.98,143.93,26.27010022]
[1768488538775,7.27624624,143.95,143.9,6.94914653]
[1768488538970,0.63383297,143.95,143.9,13.5915598]
[1768488539189,0.63383297,143.95,143.89,13.19680405]
[1768488539190,0.63383297,143.95,143.92,6.64241327]
[1768488539399,0.63383297,143.97,143.9,0.51922967]
[1768488539690,7.27624624,143.97,143.93,6.947682]
[1768488539870,0.63383297,143.96,143.89,12.68]
[1768488540067,0.63383297,143.97,143.9,13.59135113]
[1768488540383,0.63383297,143.95,143.9,6.9491435]
[1768488540685,7.27624624,143.94,143.88,6.64241327]
[1768488540862,0.63383297,143.94,143.9,13.5916548]
[1768488541062,7.57978103,143.97,143.91,6.64241327]
[1768488541383,7.57978103,143.97,143.92,6.64241327]
[1768488541384,0.63383297,143.97,143.92,6.64241327]
[1768488541578,0.63383297,143.97,143.91,0.52162742]
[1768488541768,17.36027001,144.01,143.94,0.52399763]
[1768488541769,7.27624624,144.01,143.94,0.52399763]
[1768488541971,0.63383297,144.04,143.97,6.64241327]
[1768488542163,0.63383297,144.03,143.96,0.52399763]
[1768488542464,0.63383297,144.03,143.93,12.68]
[1768488542465,0.63383297,143.99,143.95,6.94659034]
[1768488542804,0.63383297,143.99,143.96,6.64241327]
[1768488543096,0.63383297,144.01,143.96,6.64241327]
[1768488544293,0.63383297,144.01,143.95,24.3137317]
[1768488544294,0.63383297,143.99,143.95,13.58900361]
[1768488544616,0.63383297,143.99,143.95,6.94659034]
[1768488544806,0.63383297,143.99,143.95,13.58900361]
[1768488545096,0.63383297,144.01,143.96,6.64241327]
[1768488545269,17.69770732,144.05,143.97,6.64241327]
[1768488545270,0.63383297,144.03,143.97,6.64241327]
[1768488545471,0.63383297,144.03,143.98,6.64241327]
[1768488545670,0.63383297,144.03,143.96,0.53320934]
[1768488545868,0.63383297,144.02,143.96,0.53320934]
[1768488546091,7.27624624,144.02,143.97,6.64241327]
[1768488546295,0.63383297,144.01,143.95,24.3137317]
[1768488546470,0.63383297,144.01,143.97,6.64241327]
[1768488546990,0.63383297,144.01,143.95,24.84917822]
[1768488547191,7.1421668,144.05,143.98,6.64241327]
[1768488547400,0.63383297,144.07,144.01,6.64241327]
[1768488547579,4.5144765,144.08,144.03,6.64241327]
[1768488547767,0.4495199,144.09,144.04,6.64241327]
[1768488547974,6.64241327,144.11,144.05,12.68]
[1768488548271,0.63383297,144.1,144.05,12.68]
[1768488548483,0.63383297,144.09,144.04,6.64241327]
[1768488548789,0.83383297,144.12,144.06,6.64241327]
[1768488548999,0.83383297,144.12,144.04,12.68]
[1768488549311,0.63383297,144.09,144.05,6.64241327]
[1768488549488,0.63383297,144.09,144.04,12.68]
[1768488549489,0.63383297,144.11,144.06,6.64241327]
[1768488549802,0.2,144.12,144.08,6.64241327]
[1768488550186,0.2,144.12,144.05,0.14216157]
[1768488550585,0.73383297,144.14,144.07,0.14216157]
[1768488550586,0.1,144.14,144.07,0.14216157]
[1768488550782,0.63383297,144.16,144.09,0.14216157]
[1768488550985,17.35774901,144.18,144.09,0.14216157]
[1768488551197,0.63383297,144.17,144.09,0.14216157]
[1768488551402,0.63383297,144.17,144.11,6.64241327]
[1768488551606,16.72391604,144.18,144.11,0.54625284]
[1768488551977,1.56683299,144.19,144.14,0.54625284]
[1768488551978,0.93300002,144.19,144.14,0.54625284]
[1768488552181,0.93300002,144.19,144.15,19.30241327]
[1768488552582,0.93300002,144.19,144.15,26.2393016]
[1768488552798,0.63383297,144.23,144.16,0.54834021]
[1768488553001,0.63383297,144.28,144.2,0.54834021]
[1768488553192,6.93048721,144.29,144.19,13.20834021]
[1768488553193,7.27624624,144.27,144.19,13.20834021]
[1768488553402,0.63383297,144.25,144.19,12.66]
[1768488553583,0.63383297,144.28,144.2,0.5504036]
[1768488553780,0.63383297,144.28,144.19,12.66]
[1768488553979,0.63383297,144.3,144.2,0.5504036]
[1768488554185,0.63383297,144.34,144.26,0.5504036]
[1768488554613,0.63383297,144.36,144.28,0.55244328]
[1768488554801,0.4495199,144.38,144.3,0.55244328]
[1768488555011,0.63383297,144.36,144.29,12.66]
[1768488555190,0.63383297,144.36,144.3,19.30241327]
[1768488555388,0.63383297,144.33,144.26,6.93189462]
[1768488555587,24.69113028,144.38,144.26,12.66]
[1768488555588,0.63383297,144.31,144.26,12.66]
[1768488555916,0.63383297,144.31,144.24,12.66]
[1768488556106,0.63383297,144.29,144.21,13.21445955]
[1768488556303,0.63383297,144.29,144.24,6.64241327]
[1768488556503,0.63383297,144.31,144.26,13.57418911]
[1768488556710,0.63383297,144.33,144.26,19.59177584]
[1768488556912,0.63383297,144.3,144.21,17.89114224]
[1768488557112,0.63383297,144.3,144.23,12.66]
[1768488557619,0.63383297,144.3,144.23,6.64241327]
[1768488557804,0.63383297,144.27,144.17,0.55842286]
[1768488558006,0.63383297,144.24,144.17,0.55842286]
[1768488558205,0.14216157,144.29,144.12,0.55842286]
[1768488558206,0.63383297,144.21,144.12,0.55842286]
[1768488558510,0.63383297,144.21,144.14,0.56037044]
[1768488558696,0.63383297,144.26,144.17,0.56037044]
[1768488558896,0.63383297,144.25,144.18,13.22037044]
[1768488559113,0.63383297,144.24,144.18,12.66]
[1768488559691,0.63383297,144.22,144.15,6.93721817]
[1768488559900,0.63383297,144.21,144.15,6.64241327]
[1768488560113,0.63383297,144.21,144.14,19.5976576]
[1768488560114,0.63383297,144.2,144.14,19.5976576]
[1768488560318,0.63383297,144.2,144.14,6.9376576]
[1768488560519,0.63383297,144.2,144.14,6.93740371]
[1768488560700,0.67499525,144.19,144.13,6.64241327]
[1768488560901,0.67499525,144.19,144.14,6.93736725]
[1768488561101,0.67499525,144.19,144.15,6.64241327]
[1768488561304,0.67499525,144.19,144.14,6.93736725]
[1768488561518,0.67499525,144.18,144.12,12.66]
[1768488561710,0.67499525,144.18,144.12,19.30241327]
[1768488561914,0.67499525,144.18,144.07,90.12722081]
[1768488561915,0.67499525,144.15,144.07,90.12722081]
[1768488562219,0.67499525,144.11,144.07,90.12722081]
[1768488562514,0.67499525,144.17,144.1,6.64241327]
[1768488562721,7.31740852,144.19,144.11,6.9391437]
[1768488562902,7.31740852,144.18,144.12,6.64241327]
[1768488563218,0.67499525,144.18,144.14,6.64241327]
[1768488563418,0.67499525,144.18,144.11,36.94700297]
[1768488563604,0.67499525,144.17,144.11,19.5991437]
[1768488564198,0.68824654,144.16,144.11,19.5991437]
[1768488564402,0.68824654,144.16,144.12,6.64241327]
[1768488564605,0.68824654,144.16,144.11,19.5991437]
[1768488564818,0.68824654,144.18,144.14,6.64241327]
[1768488565217,7.33065981,144.2,144.15,6.64241327]
[1768488565516,49.65321309,144.29,144.19,6.64241327]
[1768488565517,0.68824654,144.25,144.19,6.64241327]
[1768488565819,0.21324235,144.32,144.22,6.64241327]
[1768488565820,7.33065981,144.27,144.22,6.64241327]
[1768488566013,0.68824654,144.26,144.18,12.66]
[1768488566322,0.68824654,144.26,144.22,6.64241327]
[1768488566495,0.68824654,144.29,144.21,0.57865733]
[1768488566695,0.68824654,144.29,144.24,6.93265011]
[1768488566900,7.33065981,144.29,144.24,6.93265011]
[1768488567108,0.68824654,144.28,144.24,6.93286754]
[1768488567307,0.68824654,144.28,144.23,6.93327495]
[1768488567622,0.68824654,144.28,144.13,34.57758977]
[1768488567623,0.68824654,144.23,144.14,6.93769945]
[1768488567814,0.68824654,144.19,144.14,6.93769945]
[1768488568215,0.68824654,144.18,144.14,6.93769945]
[1768488568428,0.68824654,144.18,144.14,13.58011272]
[1768488568617,0.68824654,144.2,144.14,13.58011272]
[1768488568814,0.68824654,144.19,144.14,13.58011272]
[1768488569127,7.33065981,144.18,144.14,6.93769945]
[1768488569416,0.68824654,144.17,144.12,12.66]
[1768488569618,0.68824654,144.16,144.13,6.93778479]
[1768488569832,7.33065981,144.14,144.09,6.64241327]
[1768488570033,0.68824654,144.16,144.11,6.64241327]
[1768488570333,0.68824654,144.18,144.14,6.93751088]
[1768488570906,7.33065981,144.17,144.12,6.93856006]
[1768488571222,0.68824654,144.17,144.09,17.34938332]
[1768488571404,0.68824654,144.14,144.07,17.35250274]
[1768488571602,0.68824654,144.14,144.1,6.93926011]
[1768488571825,0.68824654,144.11,144.05,6.94203401]
[1768488572027,0.83040811,144.13,144.07,6.64241327]
[1768488572207,0.68824654,144.12,144.08,6.64241327]
[1768488572404,0.68824654,144.15,144.1,6.64241327]
[1768488572601,0.68824654,144.17,144.11,6.64241327]
[1768488572799,0.68824654,144.19,144.11,24.87566028]
[1768488573329,0.68824654,144.19,144.14,10.71663853]
[1768488573632,0.68824654,144.24,144.16,0.59025762]
[1768488573931,11.40488507,144.23,144.17,10.71663853]
[1768488574104,6.93192846,144.26,144.17,10.71663853]
[1768488574105,11.40488507,144.22,144.17,10.71663853]
[1768488574602,0.68824654,144.21,144.11,24.28700297]
[1768488574802,0.68824654,144.16,144.12,10.71663853]
[1768488575008,0.68824654,144.16,144.11,17.34785927]
[1768488575209,0.68824654,144.16,144.13,10.71663853]
[1768488575441,181.4,144.28,144.16,0.6431061]
[1768488575442,6.93240901,144.25,144.16,0.6431061]
[1768488575736,10.71663853,144.24,144.18,10.71663853]
[1768488575906,10.71663853,144.23,144.18,10.71663853]
[1768488576329,10.71663853,144.21,144.13,0.6431061]
[1768488576633,10.71663853,144.21,144.11,17.34785927]
[1768488576634,10.71663853,144.19,144.11,17.99096537]
[1768488576819,0.14216157,144.19,144.11,6.9391437]
[1768488577018,0.14216157,144.19,144.1,6.93954525]
[1768488577208,0.14216157,144.19,144.09,6.94001314]
[1768488577209,10.71663853,144.14,144.09,6.94001314]
[1768488577404,40.33257175,144.2,144.05,0.6431061]
[1768488577405,0.68824654,144.11,144.05,0.6431061]
[1768488577631,0.68824654,144.11,144.05,28.07144994]
[1768488577932,0.62824655,144.11,144.09,6.94009319]
[1768488578140,0.14216157,144.15,144.1,6.93942728]
[1768488578315,10.71663853,144.14,144.1,6.93942728]
[1768488578706,10.71663853,144.13,144.08,10.71663853]
[1768488578905,10.71663853,144.13,144.09,6.93997892]
[1768488579407,10.71663853,144.14,144.09,17.65661745]
[1768488579609,10.71663853,144.14,144.09,6.93997892]
[1768488579811,17.48336347,144.17,144.09,6.93997892]
[1768488579812,10.71663853,144.13,144.09,6.93997892]
[1768488580030,11.40488507,144.12,144.06,17.35369772]
[1768488580329,0.68824654,144.11,144.07,10.71663853]
[1768488580525,0.14216157,144.15,144.08,10.71663853]
[1768488580710,0.68824654,144.13,144.08,6.94048369]
[1768488581133,0.68824654,144.15,144.09,10.71663853]
[1768488581511,11.40488507,144.15,144.1,10.71663853]
[1768488581722,11.40488507,144.15,144.08,37.59506119]
[1768488581923,11.40488507,144.15,144.1,10.71663853]
[1768488582147,0.68824654,144.15,144.1,10.71663853]
[1768488582433,11.40488507,144.14,144.08,36.95195509]
[1768488582638,10.71663853,144.15,144.1,10.71663853]
[1768488582846,0.68824654,144.16,144.1,35.00532694]
[1768488583015,0.68824654,144.16,144.11,10.71663853]
[1768488583343,0.68824654,144.18,144.13,10.71663853]
[1768488583515,11.40488507,144.18,144.13,10.71663853]
[1768488583906,11.40488507,144.18,144.11,0.6431061]
[1768488583907,11.40488507,144.17,144.11,0.6431061]
[1768488584117,11.40488507,144.17,144.12,10.71663853]
[1768488584523,11.40488507,144.17,144.1,24.28868841]
[1768488584720,0.68824654,144.17,144.12,10.71663853]
[1768488584919,0.68824654,144.17,144.13,6.9381808]
[1768488585329,11.40488507,144.17,144.13,6.9381808]
[1768488585528,11.40488507,144.16,144.13,6.9381808]
[1768488585731,0.68824654,144.14,144.11,6.93880037]
[1768488586038,0.68824654,144.13,144.08,17.35096513]
[1768488586211,0.68824654,144.13,144.09,10.71663853]
[1768488586612,11.40488507,144.15,144.11,6.93881761]
[1768488586830,0.68824654,144.15,144.12,6.93860813]
[1768488587037,11.40488507,144.15,144.11,6.9391437]
[1768488587234,0.68824654,144.17,144.11,24.28700297]
[1768488587619,11.40488507,144.17,144.12,10.71663853]
[1768488587829,0.68824654,144.19,144.12,0.6431061]
[1768488588027,0.68824654,144.19,144.13,10.71663853]
[1768488588231,11.40488507,144.19,144.14,10.71663853]
[1768488588415,0.68824654,144.26,144.15,0.6431061]
[1768488588617,0.68824654,144.21,144.16,10.71663853]
[1768488588817,11.40488507,144.21,144.16,10.71663853]
[1768488589146,10.71663853,144.2,144.17,6.9362558]
[1768488589657,10.71663853,144.19,144.15,6.93708495]
[1768488590141,10.71663853,144.19,144.16,6.93667829]
[1768488590445,11.40488507,144.17,144.11,17.34732312]
[1768488590823,0.68824654,144.17,144.14,6.93736375]
[1768488591025,0.68824654,144.17,144.14,6.93769945]
[1768488591740,11.40488507,144.17,144.12,6.93831934]
[1768488591937,11.41814806,144.16,144.12,6.93831934]
[1768488593018,6.93632831,144.17,144.12,6.93831934]
[1768488593243,17.65296684,144.17,144.12,6.93831934]
[1768488593421,10.71663853,144.16,144.12,6.93831934]
[1768488593846,11.41814806,144.16,144.12,6.93831934]
[1768488594049,0.70150953,144.14,144.1,6.93962526]
[1768488594235,7.07937974,144.15,144.07,12.66]
[1768488594441,0.14216157,144.14,144.08,6.94043754]
[1768488594744,10.71663853,144.13,144.09,6.93983386]
[1768488594932,0.14216157,144.14,144.05,17.35457113]
[1768488595243,0.14216157,144.14,144.06,6.94119211]
[1768488595244,0.14216157,144.13,144.06,6.94119211]
[1768488595437,10.71663853,144.1,144.06,6.94119211]
[1768488595637,0.14216157,144.13,144.05,0.74502571]
[1768488595947,0.14216157,144.13,144.03,12.66]
[1768488595948,0.14216157,144.13,144.06,10.71663853]
[1768488596255,10.71663853,144.1,144.05,17.65860937]
[1768488596427,10.71663853,144.1,144.05,6.94197084]
[1768488596822,0.8436711,144.11,144.06,6.94147748]
[1768488597031,10.71663853,144.09,144.03,12.66]
[1768488597248,10.71663853,144.08,144.03,23.37663853]
[1768488597742,10.65663854,144.08,144.03,23.37663853]
[1768488598038,0.70150953,144.1,144.04,10.71663853]
[1768488598256,0.14216157,144.11,144.06,0.74502571]
[1768488598450,10.71663853,144.1,144.05,17.65867254]
[1768488598649,10.71663853,144.1,144.05,35.01375757]
[1768488598839,7.64032313,144.12,144.06,10.71663853]
[1768488599036,0.70150953,144.1,144.04,6.94232124]
[1768488599237,10.71663853,144.08,144.03,6.94289938]
[1768488599443,24.28546916,144.12,144.04,18.40414559]
[1768488599444,10.71663853,144.09,144.04,18.40414559]
[1768488599765,0.70150953,144.11,144.03,6.94288669]
[1768488599766,10.71663853,144.07,144.03,6.94288669]
[1768488599937,10.71663853,144.08,144.04,6.94248624]
[1768488600562,10.71663853,144.09,144.04,7.68751195]
[1768488600848,0.70150953,144.1,144.04,18.40415048]
[1768488601060,10.71663853,144.08,144.04,6.94248624]
[1768488601244,10.71663853,144.08,144.03,10.71663853]
[1768488601245,10.71663853,144.08,144.03,6.94284027]
[1768488601432,7.6416164,144.09,144.04,11.46166424]
[1768488601433,10.71663853,144.09,144.04,11.46166424]
[1768488601839,0.8436711,144.11,144.05,10.71663853]
[1768488602177,10.71663853,144.1,144.05,11.46166424]
[1768488602323,10.71663853,144.1,144.03,24.30033523]
[1768488602324,10.71663853,144.09,144.04,6.94233984]
[1768488602528,10.71663853,144.08,144.04,6.94233984]
[1768488603043,17.34769972,144.12,144.06,11.46166424]
[1768488603044,0.70150953,144.12,144.06,11.46166424]
[1768488603348,30.00466883,144.14,144.09,0.74502571]
[1768488603349,10.71663853,144.14,144.09,0.74502571]
[1768488603643,10.71663853,144.14,144.09,11.46166424]
[1768488604046,7.63838595,144.16,144.09,0.74502571]
[1768488604250,10.71663853,144.14,144.1,6.93962526]
[1768488604452,10.71663853,144.13,144.09,7.68494227]
[1768488604753,10.71663853,144.11,144.06,12.66]
[1768488605049,167.10150953,144.18,144.1,0.74502571]
[1768488605253,0.70150953,144.21,144.12,11.46166424]
[1768488605452,10.71663853,144.18,144.14,0.74502571]
[1768488605664,10.71663853,144.17,144.14,0.74502571]
[1768488605870,10.71663853,144.17,144.1,0.74502571]
[1768488605871,10.71663853,144.15,144.1,0.74502571]
[1768488606446,10.71663853,144.14,144.1,0.74502571]
[1768488606754,10.71663853,144.14,144.1,7.68452281]
[1768488606940,11.41814806,144.13,144.09,12.66]
[1768488607142,10.71663853,144.11,144.07,6.94092245]
[1768488607329,0.70150953,144.13,144.08,6.94053646]
[1768488607522,10.71663853,144.11,144.07,6.94088217]
[1768488607750,10.71663853,144.09,144.05,12.66]
[1768488608250,0.14216157,144.13,144.06,10.71663853]
[1768488608462,10.71663853,144.11,144.07,7.68580301]
[1768488608628,7.64007732,144.13,144.07,7.68580301]
[1768488608832,10.71663853,144.11,144.07,7.68580301]
[1768488609229,10.71663853,144.11,144.07,6.9407773]
[1768488609433,0.70150953,144.07,144.0,10.71663853]
[1768488609634,10.71663853,144.06,144.02,7.68841192]
[1768488609873,10.71663853,144.05,144.02,6.94338621]
[1768488610166,0.14216157,144.08,144.02,6.94338621]
[1768488610470,0.14216157,144.08,144.02,18.40505045]
[1768488610650,10.71663853,144.08,144.03,10.71663853]
[1768488611262,10.71663853,144.07,144.02,18.40505045]
[1768488611557,7.64160584,144.1,144.02,35.76375063]
[1768488611761,10.71663853,144.08,144.03,23.37663853]
[1768488612145,10.71663853,144.07,144.03,12.66]
[1768488612468,0.70150953,144.09,144.03,12.66]
[1768488612641,0.70150953,144.07,144.02,7.68812135]
[1768488612834,10.71663853,144.05,144.02,6.94309564]
[1768488613033,6.94058856,144.08,144.0,12.66]
[1768488613034,10.71663853,144.03,144.0,12.66]
[1768488613245,0.70150953,144.06,144.0,12.66]
[1768488613465,0.14216157,144.07,144.02,6.94340455]
[1768488613648,10.71663853,144.05,144.02,6.94340455]
[1768488614045,0.14216157,144.07,144.02,6.94340455]
[1768488614261,0.14216157,144.07,144.0,13.40502571]
[1768488614262,0.8436711,144.07,144.0,13.40502571]
[1768488614467,0.70150953,144.06,144.0,12.66]
[1768488614765,10.71663853,144.02,143.98,7.69017168]
[1768488614956,6.9432631,144.03,143.97,19.60571323]
[1768488614957,7.64477263,144.03,143.97,19.60571323]
[1768488615146,6.94188504,144.06,144.01,0.74502571]
[1768488615462,10.71663853,144.05,144.01,0.74502571]
[1768488615854,23.37663853,144.1,144.03,11.46166424]
[1768488615855,6.93979915,144.1,144.03,11.46166424]
[1768488616042,10.71663853,144.07,144.03,0.74502571]
[1768488616241,10.71663853,144.06,144.01,13.40502571]
[1768488616448,0.8436711,144.09,144.02,0.74502571]
[1768488616759,10.71663853,144.06,144.03,6.94299798]
[1768488616968,10.71663853,144.06,144.02,7.68834265]
[1768488617262,10.71663853,144.05,144.0,17.66074768]
[1768488617467,6.94111185,144.07,144.02,12.66]
[1768488617666,10.71663853,144.06,144.02,12.66]
[1768488617854,10.71663853,144.05,144.02,12.66]
[1768488618448,10.71663853,144.04,144.02,12.66]
[1768488618646,17.3522362,144.08,143.99,19.60490089]
[1768488618647,10.71663853,144.03,143.99,19.60490089]
[1768488619374,7.08389394,144.06,144.01,6.94363813]
[1768488619865,7.08389394,144.06,143.99,13.40502571]
[1768488619866,10.71663853,144.03,143.99,13.40502571]
[1768488620249,0.14216157,144.04,143.99,13.40502571]
[1768488620452,10.71663853,144.02,143.99,12.66]
[1768488621157,10.71663853,144.0,143.99,11.76635078]
[1768488621365,6.9430803,144.03,143.99,11.76635078]
[1768488621548,10.71663853,144.01,143.99,11.76635078]
[1768488621944,10.71663853,144.0,143.96,0.2]
[1768488622149,10.71663853,143.99,143.96,0.2]
[1768488622370,10.71663853,143.97,143.91,7.14861468]
[1768488622560,10.71663853,143.96,143.92,6.94811873]
[1768488622750,10.71663853,143.97,143.93,0.8938167]
[1768488622946,10.71663853,143.96,143.93,0.8938167]
[1768488623169,10.71663853,143.95,143.91,20.70244767]
[1768488623556,10.71663853,143.94,143.91,20.70246022]
[1768488623743,6.94540908,143.98,143.92,0.8938167]
[1768488623953,17.35915658,144.02,143.95,0.8938167]
[1768488624150,0.02574503,144.11,143.98,0.92245246]
[1768488624347,10.71663853,144.03,144.0,0.92245246]
[1768488624568,17.66075163,144.01,143.96,6.94637399]
[1768488624767,10.71663853,143.99,143.95,20.52920911]
[1768488625473,0.14216157,144.0,143.95,12.66]
[1768488625767,10.71663853,143.97,143.93,20.53021341]
[1768488626171,10.71663853,143.96,143.91,8.07118382]
[1768488626364,10.71663853,143.94,143.91,0.2]
[1768488626565,0.05533579,143.97,143.91,0.2]
[1768488626566,7.00236753,143.95,143.91,0.2]
[1768488626751,0.05533579,144.0,143.92,0.92245246]
[1768488626948,10.71663853,143.97,143.93,0.92245246]
[1768488627182,10.71663853,143.96,143.93,0.92245246]
[1768488627359,6.94539657,143.99,143.93,0.92245246]
[1768488627561,0.14216157,143.99,143.94,0.92245246]
[1768488627763,10.71663853,143.98,143.94,0.92245246]
[1768488628283,10.71663853,143.97,143.94,0.92245246]
[1768488628459,10.71663853,143.97,143.92,13.58245246]
[1768488628660,10.71663853,143.96,143.92,13.58245246]
[1768488628880,10.71663853,143.95,143.92,12.66]
[1768488629276,6.94642193,143.96,143.91,0.2]
[1768488629277,10.71663853,143.94,143.91,0.2]
[1768488630153,10.71663853,143.92,143.91,0.2]
[1768488630377,10.71663853,143.93,143.91,0.2]
[1768488631271,10.8588001,143.92,143.86,6.95118053]
[1768488631473,10.71663853,143.9,143.87,6.95068526]
[1768488631679,10.71663853,143.9,143.86,7.87350028]
[1768488631889,24.31568708,143.94,143.87,7.87299445]
[1768488632081,10.71663853,143.92,143.88,0.92245246]
[1768488632273,7.08914264,143.95,143.89,0.92245246]
[1768488632473,10.71663853,143.95,143.91,0.92245246]
[1768488632887,6.94669232,143.96,143.92,0.92245246]
[1768488633188,219.12413127,144.01,143.95,0.92245246]
[1768488633189,166.4,144.01,143.95,0.92245246]
[1768488633374,103.1,144.05,143.96,11.63909099]
[1768488633375,24.29923815,144.04,143.96,11.63909099]
[1768488633566,10.71663853,144.0,143.95,0.92245246]
[1768488633761,10.71663853,144.01,143.96,0.92245246]
[1768488633958,0.03673784,144.03,143.96,0.92245246]
[1768488634163,10.71663853,143.99,143.95,12.66]
[1768488634566,10.71663853,143.99,143.95,13.58245246]
[1768488634785,17.66161282,143.99,143.95,13.58245246]
[1768488634980,6.94497429,143.99,143.95,0.92245246]
[1768488635172,17.66161282,143.99,143.95,0.92245246]
[1768488635487,0.14216157,144.01,143.93,0.92245246]
[1768488635488,6.61370659,143.96,143.93,0.92245246]
[1768488635780,6.61370659,143.94,143.89,0.92245246]
[1768488635981,0.06053183,143.99,143.9,0.92245246]
[1768488636186,0.14216157,143.99,143.9,0.92245246]
[1768488636367,6.61370659,143.95,143.92,0.92245246]
[1768488636563,6.61370659,143.96,143.92,0.92245246]
[1768488636782,6.61370659,143.95,143.92,7.87033618]
[1768488637174,6.94540908,143.98,143.92,7.87033618]
[1768488637675,6.61370659,143.95,143.92,7.87033618]
[1768488638285,6.61370659,143.95,143.92,0.92245246]
[1768488639606,12.04096388,144.0,143.92,0.92245246]
[1768488639607,0.1052886,144.05,143.93,0.92245246]
[1768488639893,6.61370659,143.98,143.93,0.92245246]
[1768488640070,12.66,144.05,143.93,0.92245246]
[1768488640071,6.61370659,143.99,143.93,0.92245246]
[1768488640478,6.58373019,143.99,143.93,0.92245246]
[1768488640677,6.61370659,143.98,143.93,0.92245246]
[1768488640984,6.61370659,143.98,143.95,0.92245246]
[1768488641183,6.61370659,143.98,143.95,13.58245246]
[1768488641690,6.94454403,144.0,143.95,13.58245246]
[1768488641999,6.61370659,143.97,143.95,12.66]
[1768488643298,6.61370659,143.98,143.96,0.92245246]
[1768488643913,6.61370659,143.99,143.96,0.92245246]
[1768488644070,6.94411853,144.01,143.96,0.92245246]
[1768488644397,6.61370659,143.99,143.96,0.92245246]
[1768488645189,7.08570011,144.02,143.96,0.92245246]
[1768488645519,5.51275135,144.06,143.96,0.92245246]
[1768488645796,6.61370659,144.02,143.97,0.92245246]
[1768488646095,6.61370659,144.02,143.99,0.92245246]
[1768488646883,6.61370659,144.0,143.97,12.66]
[1768488647084,0.17880463,144.03,143.98,0.92245246]
[1768488647085,13.55789119,144.01,143.98,0.92245246]
[1768488647284,6.61370659,144.02,143.98,0.92245246]
[1768488649189,24.29755298,144.05,143.98,7.86767315]
[1768488649491,6.61370659,144.03,143.99,0.92245246]
[1768488649710,6.61370659,144.01,143.97,13.58245246]
[1768488649897,6.61370659,144.01,143.98,0.92245246]
[1768488650093,6.61370659,144.02,143.98,0.92245246]
[1768488650674,24.29755298,144.05,143.98,0.92245246]
[1768488650992,6.94107031,144.07,143.99,1.03670197]
[1768488651300,6.61370659,144.08,144.02,1.03670197]
[1768488651486,6.61370659,144.08,144.04,1.03670197]
[1768488651913,6.61370659,144.07,144.04,1.03670197]
[1768488652205,6.61370659,144.07,144.03,12.66]
[1768488652381,24.29053667,144.09,144.03,12.66]
[1768488652580,6.61370659,144.06,144.03,12.66]
[1768488653080,0.14216157,144.08,144.01,13.69670197]
[1768488653081,0.38877122,144.08,144.01,13.69670197]
[1768488653291,6.61370659,144.05,144.02,1.03670197]
[1768488654096,24.29374609,144.07,144.02,1.03670197]
[1768488654478,6.61370659,144.06,144.02,1.03670197]
[1768488654673,6.61370659,144.05,143.99,1.03670197]
[1768488654902,6.94107031,144.07,144.01,1.03670197]
[1768488655107,17.35065967,144.09,144.02,1.03670197]
[1768488655108,6.61370659,144.06,144.02,1.03670197]
[1768488655302,6.94010617,144.1,144.03,1.03670197]
[1768488655486,13.55381276,144.1,144.05,1.03670197]
[1768488655686,17.34595858,144.13,144.05,1.03670197]
[1768488655900,6.61370659,144.1,144.05,1.03670197]
[1768488656102,6.61370659,144.11,144.05,1.03670197]
[1768488656490,6.61370659,144.13,144.06,1.03670197]
[1768488657225,6.61370659,144.15,144.09,1.03670197]
[1768488657405,17.43860214,144.19,144.11,1.03670197]
[1768488657615,6.61370659,144.16,144.11,1.03670197]
[1768488657801,6.93577472,144.18,144.11,1.03670197]